[Event "*** SCC Grand Prix: Titled Tuesday Blitz"]
[Site "Chess.com"]
[Date "2020.07.14"]
[Round "2"]
[White "TomasKapitanchuk"]
[Black "malakismayil"]
[Result "0-1"]
[WhiteElo "2422"]
[BlackElo "2253"]
[TimeControl "180+1"]
[EndTime "10:17:47 PDT"]
[Termination "malakismayil won by resignation"]

1. e4 {[%clk 0:03:00.9]} 1... e5 {[%clk 0:02:59.4]} 2. Nf3 {[%clk 0:03:01.4]}
2... Nc6 {[%clk 0:02:59.7]} 3. Bc4 {[%clk 0:03:02]} 3... Bc5 {[%clk 0:02:59.9]}
4. c3 {[%clk 0:03:02.5]} 4... Nf6 {[%clk 0:02:57.8]} 5. d3 {[%clk 0:03:02.8]}
5... d6 {[%clk 0:02:56.6]} 6. a4 {[%clk 0:03:01.9]} 6... a5 {[%clk 0:02:55.6]}
7. O-O {[%clk 0:02:59.6]} 7... h6 {[%clk 0:02:53.5]} 8. Na3 {[%clk 0:02:57.9]}
8... O-O {[%clk 0:02:47.7]} 9. h3 {[%clk 0:02:57.3]} 9... d5 {[%clk 0:02:37.3]}
10. exd5 {[%clk 0:02:54.9]} 10... Nxd5 {[%clk 0:02:38.2]} 11. Re1 {[%clk
0:02:49.1]} 11... Re8 {[%clk 0:02:37.5]} 12. Qb3 {[%clk 0:02:44.9]} 12... Be6
{[%clk 0:02:16.9]} 13. Qxb7 {[%clk 0:02:34.8]} 13... Qd6 {[%clk 0:01:34.9]} 14.
Qb3 {[%clk 0:01:47.3]} 14... Nb6 {[%clk 0:01:01.4]} 15. Bxe6 {[%clk 0:01:40.4]}
15... Rxe6 {[%clk 0:01:02.3]} 16. Nb5 {[%clk 0:01:39.7]} 16... Qd7 {[%clk
0:01:02.5]} 17. Be3 {[%clk 0:01:05.6]} 17... Be7 {[%clk 0:00:50.6]} 18. d4
{[%clk 0:01:01.1]} 18... e4 {[%clk 0:00:49.5]} 19. Nd2 {[%clk 0:00:58.1]} 19...
Nd5 {[%clk 0:00:31.3]} 20. Nf1 {[%clk 0:00:50.1]} 20... Rg6 {[%clk 0:00:28.4]}
21. Kh1 {[%clk 0:00:48.3]} 21... Kh7 {[%clk 0:00:27.8]} 22. Qc2 {[%clk
0:00:42.7]} 22... f5 {[%clk 0:00:27.6]} 23. f4 {[%clk 0:00:40.9]} 23... exf3
{[%clk 0:00:26.7]} 24. gxf3 {[%clk 0:00:30.7]} 24... f4 {[%clk 0:00:26.5]} 25.
Bg1 {[%clk 0:00:30.1]} 25... Qxh3+ {[%clk 0:00:25.5]} 26. Nh2 {[%clk 0:00:26.3]}
26... Bf6 {[%clk 0:00:18.3]} 27. c4 {[%clk 0:00:23.9]} 27... Ncb4 {[%clk
0:00:14.6]} 28. Qf2 {[%clk 0:00:19]} 28... Ne3 {[%clk 0:00:14.1]} 29. Ra3 {[%clk
0:00:13.8]} 29... Rg2 {[%clk 0:00:13.8]} 0-1

[Event "*** SCC Grand Prix: Titled Tuesday Blitz"]
[Site "Chess.com"]
[Date "2020.07.14"]
[Round "2"]
[White "allvim"]
[Black "PavelShkapenko"]
[Result "1/2-1/2"]
[WhiteElo "2249"]
[BlackElo "2597"]
[TimeControl "180+1"]
[EndTime "10:17:49 PDT"]
[Termination "Game drawn by repetition"]

1. e4 {[%clk 0:02:59.3]} 1... c5 {[%clk 0:02:59.6]} 2. Nf3 {[%clk 0:02:59.2]}
2... e6 {[%clk 0:02:59.8]} 3. d4 {[%clk 0:02:57.5]} 3... cxd4 {[%clk 0:02:59.8]}
4. Nxd4 {[%clk 0:02:58.4]} 4... Nf6 {[%clk 0:03:00]} 5. Bd3 {[%clk 0:02:57.4]}
5... Nc6 {[%clk 0:03:00]} 6. Nxc6 {[%clk 0:02:49.1]} 6... dxc6 {[%clk
0:02:59.9]} 7. O-O {[%clk 0:02:49]} 7... e5 {[%clk 0:03:00.3]} 8. Bg5 {[%clk
0:02:35.9]} 8... Be7 {[%clk 0:02:56.4]} 9. Nd2 {[%clk 0:02:35.9]} 9... Be6
{[%clk 0:02:56.1]} 10. Re1 {[%clk 0:02:29.7]} 10... O-O {[%clk 0:02:55.2]} 11.
Bc4 {[%clk 0:02:27.1]} 11... Bg4 {[%clk 0:02:47]} 12. f3 {[%clk 0:01:58.3]}
12... Bc8 {[%clk 0:02:46.1]} 13. Be3 {[%clk 0:01:51.6]} 13... Nd7 {[%clk
0:02:34.9]} 14. Nf1 {[%clk 0:01:38.1]} 14... Bc5 {[%clk 0:02:24.8]} 15. Bxc5
{[%clk 0:01:32.1]} 15... Nxc5 {[%clk 0:02:24.8]} 16. Qxd8 {[%clk 0:01:32.8]}
16... Rxd8 {[%clk 0:02:25]} 17. Rad1 {[%clk 0:01:33.5]} 17... Be6 {[%clk
0:02:23.8]} 18. Bxe6 {[%clk 0:01:29.6]} 18... Nxe6 {[%clk 0:02:24.4]} 19. c3
{[%clk 0:01:28.5]} 19... Nf4 {[%clk 0:02:22.5]} 20. Ne3 {[%clk 0:01:10.6]} 20...
f6 {[%clk 0:02:15.4]} 21. g3 {[%clk 0:01:05.9]} 21... Ne6 {[%clk 0:01:49]} 22.
Nf5 {[%clk 0:00:59.6]} 22... Nc5 {[%clk 0:01:32.3]} 23. b3 {[%clk 0:00:53.8]}
23... g6 {[%clk 0:01:28.3]} 24. Ne3 {[%clk 0:00:52.3]} 24... Kf7 {[%clk
0:01:23.4]} 25. Rxd8 {[%clk 0:00:52.3]} 25... Rxd8 {[%clk 0:01:22.5]} 26. Rd1
{[%clk 0:00:53]} 26... Ke7 {[%clk 0:01:18.4]} 27. Rxd8 {[%clk 0:00:51.9]} 27...
Kxd8 {[%clk 0:01:18.5]} 28. Kf1 {[%clk 0:00:52.6]} 28... Ke7 {[%clk 0:01:18.6]}
29. Ke2 {[%clk 0:00:52.9]} 29... Ne6 {[%clk 0:01:18.6]} 30. Nc4 {[%clk
0:00:48.7]} 30... b5 {[%clk 0:01:18.3]} 31. Nb2 {[%clk 0:00:44.1]} 31... Kd6
{[%clk 0:01:18.2]} 32. Nd3 {[%clk 0:00:44.2]} 32... f5 {[%clk 0:01:17.9]} 33.
Ke3 {[%clk 0:00:43.7]} 33... a5 {[%clk 0:01:15.1]} 34. f4 {[%clk 0:00:39.3]}
34... exf4+ {[%clk 0:01:13.8]} 35. gxf4 {[%clk 0:00:35.3]} 35... fxe4 {[%clk
0:01:10.6]} 36. Kxe4 {[%clk 0:00:36.2]} 36... Ng7 {[%clk 0:01:11.1]} 37. Ne5
{[%clk 0:00:31.8]} 37... Nf5 {[%clk 0:01:10.5]} 38. Nf7+ {[%clk 0:00:31.6]}
38... Ke6 {[%clk 0:01:10.1]} 39. Ng5+ {[%clk 0:00:32]} 39... Kf6 {[%clk
0:01:04.5]} 40. Nxh7+ {[%clk 0:00:31.8]} 40... Kg7 {[%clk 0:01:04.9]} 41. Ng5
{[%clk 0:00:32]} 41... Kf6 {[%clk 0:01:05.6]} 42. Nf3 {[%clk 0:00:29.7]} 42...
Nd6+ {[%clk 0:01:00.9]} 43. Ke3 {[%clk 0:00:28.5]} 43... c5 {[%clk 0:00:59]} 44.
Ne5 {[%clk 0:00:24.7]} 44... Kf5 {[%clk 0:00:56.6]} 45. Nc6 {[%clk 0:00:20.5]}
45... a4 {[%clk 0:00:56.8]} 46. bxa4 {[%clk 0:00:19.4]} 46... bxa4 {[%clk
0:00:56.7]} 47. Ne7+ {[%clk 0:00:19.6]} 47... Kf6 {[%clk 0:00:54.8]} 48. Nd5+
{[%clk 0:00:19.6]} 48... Kf5 {[%clk 0:00:55.2]} 49. Nb6 {[%clk 0:00:19.8]} 49...
a3 {[%clk 0:00:53.5]} 50. Nd5 {[%clk 0:00:19.6]} 50... Nc4+ {[%clk 0:00:51.1]}
51. Kd3 {[%clk 0:00:19.6]} 51... Nd6 {[%clk 0:00:51.2]} 52. Ne7+ {[%clk
0:00:19.5]} 52... Kf6 {[%clk 0:00:49.5]} 53. Nd5+ {[%clk 0:00:19.5]} 53... Kf5
{[%clk 0:00:49.9]} 54. Ne7+ {[%clk 0:00:19]} 54... Kf6 {[%clk 0:00:50.2]} 55.
Nd5+ {[%clk 0:00:18.6]} 55... Kf5 {[%clk 0:00:50.5]} 1/2-1/2

[Event "*** SCC Grand Prix: Titled Tuesday Blitz"]
[Site "Chess.com"]
[Date "2020.07.14"]
[Round "2"]
[White "kingnb"]
[Black "GadimbayliA"]
[Result "0-1"]
[WhiteElo "2538"]
[BlackElo "2882"]
[TimeControl "180+1"]
[EndTime "10:17:58 PDT"]
[Termination "GadimbayliA won by resignation"]

1. d4 {[%clk 0:03:00.9]} 1... d5 {[%clk 0:02:56.9]} 2. Nf3 {[%clk 0:03:01.3]}
2... Nc6 {[%clk 0:02:56.6]} 3. e3 {[%clk 0:03:02.2]} 3... Nf6 {[%clk 0:02:53.8]}
4. c4 {[%clk 0:03:01.7]} 4... Bg4 {[%clk 0:02:51.3]} 5. cxd5 {[%clk 0:03:01.1]}
5... Qxd5 {[%clk 0:02:47.1]} 6. Nc3 {[%clk 0:03:01]} 6... Qh5 {[%clk 0:02:47]}
7. Be2 {[%clk 0:02:59.9]} 7... e6 {[%clk 0:02:38]} 8. h3 {[%clk 0:02:59]} 8...
Bd6 {[%clk 0:02:35.6]} 9. Qb3 {[%clk 0:02:56.9]} 9... O-O {[%clk 0:02:29.2]} 10.
Bd2 {[%clk 0:02:51.6]} 10... a5 {[%clk 0:01:59.1]} 11. O-O-O {[%clk 0:02:45.4]}
11... Bxf3 {[%clk 0:01:57.6]} 12. gxf3 {[%clk 0:02:24.5]} 12... a4 {[%clk
0:01:51.1]} 13. Qb5 {[%clk 0:02:24.1]} 13... Qh4 {[%clk 0:01:49.2]} 14. Rdg1
{[%clk 0:02:08.9]} 14... a3 {[%clk 0:01:45.4]} 15. b3 {[%clk 0:02:03.1]} 15...
Kh8 {[%clk 0:01:34.2]} 16. Qg5 {[%clk 0:01:16.4]} 16... Qxg5 {[%clk 0:01:32.3]}
17. Rxg5 {[%clk 0:01:17.3]} 17... h6 {[%clk 0:01:33.2]} 18. Rg2 {[%clk 0:01:17]}
18... Nd5 {[%clk 0:01:29.9]} 19. Rhg1 {[%clk 0:01:11.6]} 19... g6 {[%clk
0:01:25.9]} 20. Nb5 {[%clk 0:01:00.4]} 20... Kh7 {[%clk 0:01:15.9]} 21. Kb1
{[%clk 0:00:58.5]} 21... Bb4 {[%clk 0:01:13.9]} 22. Bxb4 {[%clk 0:00:52.8]}
22... Ncxb4 {[%clk 0:01:14.8]} 23. Rc1 {[%clk 0:00:48.9]} 23... c6 {[%clk
0:01:10.4]} 24. Nc3 {[%clk 0:00:49]} 24... Nxc3+ {[%clk 0:01:10]} 25. Rxc3
{[%clk 0:00:49.9]} 25... Rfd8 {[%clk 0:01:10.8]} 26. f4 {[%clk 0:00:46.2]} 26...
Ra5 {[%clk 0:00:59.3]} 27. h4 {[%clk 0:00:44.7]} 27... c5 {[%clk 0:00:57.8]} 28.
Rc4 {[%clk 0:00:38.3]} 28... Nd5 {[%clk 0:00:51.9]} 29. dxc5 {[%clk 0:00:32.9]}
29... Rc8 {[%clk 0:00:48.5]} 30. c6 {[%clk 0:00:21.3]} 30... Rxc6 {[%clk
0:00:44.1]} 31. Rxc6 {[%clk 0:00:21.3]} 31... bxc6 {[%clk 0:00:45]} 32. Bc4
{[%clk 0:00:20.4]} 32... Nc3+ {[%clk 0:00:40.9]} 33. Ka1 {[%clk 0:00:19.7]}
33... Rh5 {[%clk 0:00:40.1]} 34. Rh2 {[%clk 0:00:19.4]} 34... g5 {[%clk
0:00:40.5]} 35. Bd3+ {[%clk 0:00:18.3]} 35... f5 {[%clk 0:00:40.1]} 36. Rh1
{[%clk 0:00:16]} 36... Rxh4 {[%clk 0:00:40.2]} 37. Rc1 {[%clk 0:00:16.1]} 37...
Ne4 {[%clk 0:00:37.4]} 38. Rxc6 {[%clk 0:00:15.6]} 38... Rh1+ {[%clk 0:00:36.1]}
39. Bb1 {[%clk 0:00:16]} 39... Nd2 {[%clk 0:00:36.4]} 0-1

[Event "*** SCC Grand Prix: Titled Tuesday Blitz"]
[Site "Chess.com"]
[Date "2020.07.14"]
[Round "2"]
[White "MVM2008"]
[Black "LastHeroJr"]
[Result "0-1"]
[WhiteElo "2238"]
[BlackElo "2445"]
[TimeControl "180+1"]
[EndTime "10:17:58 PDT"]
[Termination "LastHeroJr won on time"]

1. e4 {[%clk 0:03:00.9]} 1... Nc6 {[%clk 0:02:58.3]} 2. Nc3 {[%clk 0:02:57.6]}
2... Nf6 {[%clk 0:02:52]} 3. d4 {[%clk 0:02:56.7]} 3... d6 {[%clk 0:02:51.4]} 4.
f4 {[%clk 0:02:51.8]} 4... g6 {[%clk 0:02:48]} 5. Nf3 {[%clk 0:02:50.7]} 5...
Bg7 {[%clk 0:02:48.2]} 6. Bd3 {[%clk 0:02:47.6]} 6... O-O {[%clk 0:02:46.5]} 7.
e5 {[%clk 0:02:40.2]} 7... Ng4 {[%clk 0:02:16.5]} 8. h3 {[%clk 0:02:25.9]} 8...
Nh6 {[%clk 0:02:14.5]} 9. g4 {[%clk 0:02:25.8]} 9... dxe5 {[%clk 0:02:08.5]} 10.
dxe5 {[%clk 0:02:23.4]} 10... Be6 {[%clk 0:01:44.1]} 11. Qe2 {[%clk 0:02:13.7]}
11... Nb4 {[%clk 0:01:28.7]} 12. Be4 {[%clk 0:02:03.7]} 12... f5 {[%clk
0:01:13]} 13. exf6 {[%clk 0:01:56.5]} 13... exf6 {[%clk 0:01:13.1]} 14. Bxb7
{[%clk 0:01:28.8]} 14... Re8 {[%clk 0:01:13]} 15. O-O {[%clk 0:01:23.9]} 15...
Rb8 {[%clk 0:01:01.8]} 16. Be4 {[%clk 0:01:11.2]} 16... f5 {[%clk 0:01:00.1]}
17. gxf5 {[%clk 0:01:08.7]} 17... Nxf5 {[%clk 0:00:49.9]} 18. Kh2 {[%clk
0:00:47.1]} 18... Nd6 {[%clk 0:00:29.3]} 19. Ng5 {[%clk 0:00:37.9]} 19... Bc4
{[%clk 0:00:28.8]} 20. Qf3 {[%clk 0:00:24]} 20... Bxf1 {[%clk 0:00:28.2]} 21.
Qxf1 {[%clk 0:00:20.6]} 21... h6 {[%clk 0:00:28.5]} 22. Bxg6 {[%clk 0:00:16]}
22... hxg5 {[%clk 0:00:25.3]} 23. Bxe8 {[%clk 0:00:16.1]} 23... Qxe8 {[%clk
0:00:25.9]} 24. fxg5 {[%clk 0:00:16.4]} 24... Nxc2 {[%clk 0:00:23.6]} 25. Rb1
{[%clk 0:00:14.5]} 25... Bxc3 {[%clk 0:00:22.9]} 26. Qd3 {[%clk 0:00:10.6]}
26... Qe5+ {[%clk 0:00:20.1]} 27. Kh1 {[%clk 0:00:07.7]} 27... Qe4+ {[%clk
0:00:14.3]} 28. Qxe4 {[%clk 0:00:06.8]} 28... Nxe4 {[%clk 0:00:15.2]} 29. b3
{[%clk 0:00:05.7]} 29... Rf8 {[%clk 0:00:13]} 30. Kg2 {[%clk 0:00:04.3]} 30...
Rf2+ {[%clk 0:00:12.8]} 31. Kg1 {[%clk 0:00:04.7]} 31... Bd4 {[%clk 0:00:11.7]}
0-1

[Event "*** SCC Grand Prix: Titled Tuesday Blitz"]
[Site "Chess.com"]
[Date "2020.07.14"]
[Round "2"]
[White "Mikhal867"]
[Black "AlexOstrovskiy"]
[Result "1-0"]
[WhiteElo "2389"]
[BlackElo "2621"]
[TimeControl "180+1"]
[EndTime "10:17:59 PDT"]
[Termination "Mikhal867 won by resignation"]

1. c4 {[%clk 0:02:56.1]} 1... b6 {[%clk 0:02:56.8]} 2. d4 {[%clk 0:02:55.3]}
2... Bb7 {[%clk 0:02:57.1]} 3. Nc3 {[%clk 0:02:54.4]} 3... e6 {[%clk 0:02:57.6]}
4. a3 {[%clk 0:02:50.8]} 4... f5 {[%clk 0:02:56.8]} 5. d5 {[%clk 0:02:49.4]}
5... Bd6 {[%clk 0:02:53.8]} 6. g3 {[%clk 0:02:45.6]} 6... Nf6 {[%clk 0:02:49.9]}
7. Bg2 {[%clk 0:02:45.4]} 7... O-O {[%clk 0:02:45.1]} 8. Nh3 {[%clk 0:02:44.5]}
8... Be5 {[%clk 0:02:44.8]} 9. O-O {[%clk 0:02:37.8]} 9... Na6 {[%clk
0:02:44.5]} 10. Nf4 {[%clk 0:02:23.1]} 10... Nc5 {[%clk 0:02:40.6]} 11. Qc2
{[%clk 0:02:17]} 11... Bxc3 {[%clk 0:02:24]} 12. Qxc3 {[%clk 0:02:12.9]} 12...
Nce4 {[%clk 0:02:08.3]} 13. Qd3 {[%clk 0:02:07.8]} 13... e5 {[%clk 0:02:07.9]}
14. Nh3 {[%clk 0:02:05]} 14... a5 {[%clk 0:01:43.3]} 15. Ng5 {[%clk 0:02:00.6]}
15... Nxg5 {[%clk 0:01:34.5]} 16. Bxg5 {[%clk 0:01:59.4]} 16... h6 {[%clk
0:01:21]} 17. Bd2 {[%clk 0:01:53.8]} 17... Ne8 {[%clk 0:01:20.8]} 18. d6 {[%clk
0:01:44.5]} 18... Bxg2 {[%clk 0:01:14]} 19. dxc7 {[%clk 0:01:43.9]} 19... Qxc7
{[%clk 0:01:11.1]} 20. Kxg2 {[%clk 0:01:42.9]} 20... a4 {[%clk 0:00:58.6]} 21.
Qd5+ {[%clk 0:01:38.7]} 21... Kh7 {[%clk 0:00:50.5]} 22. Qxa8 {[%clk 0:01:36.9]}
22... Qxc4 {[%clk 0:00:50.5]} 23. Qf3 {[%clk 0:01:31]} 23... e4 {[%clk
0:00:50.4]} 24. Qe3 {[%clk 0:01:28.5]} 24... Nf6 {[%clk 0:00:51]} 25. Bb4 {[%clk
0:01:25.8]} 25... Re8 {[%clk 0:00:49.9]} 26. Rac1 {[%clk 0:01:23.6]} 26... Qb5
{[%clk 0:00:50.3]} 27. Rfd1 {[%clk 0:01:19]} 27... Ng4 {[%clk 0:00:50.4]} 28.
Qf4 {[%clk 0:01:13.2]} 28... e3 {[%clk 0:00:43]} 29. h3 {[%clk 0:00:49.2]} 29...
Nxf2 {[%clk 0:00:40.3]} 30. Re1 {[%clk 0:00:31.8]} 30... Re4 {[%clk 0:00:21.6]}
31. Qf3 {[%clk 0:00:29.8]} 31... Qe5 {[%clk 0:00:21.3]} 32. Bc3 {[%clk
0:00:27.7]} 32... Qe6 {[%clk 0:00:21.7]} 33. Rcd1 {[%clk 0:00:26.7]} 33... Nxd1
{[%clk 0:00:13.1]} 34. Rxd1 {[%clk 0:00:26.1]} 34... d5 {[%clk 0:00:14]} 35. Rd4
{[%clk 0:00:25]} 35... g5 {[%clk 0:00:05]} 36. Rxe4 {[%clk 0:00:24.5]} 36...
dxe4 {[%clk 0:00:04.2]} 37. Qxe3 {[%clk 0:00:24.1]} 37... Qd5 {[%clk 0:00:04.8]}
38. Qd4 {[%clk 0:00:23.4]} 38... Qb7 {[%clk 0:00:03.7]} 39. Qh8+ {[%clk
0:00:21.7]} 39... Kg6 {[%clk 0:00:04]} 40. Qg8+ {[%clk 0:00:21]} 40... Kh5
{[%clk 0:00:03.7]} 41. Qe8+ {[%clk 0:00:20.7]} 1-0

[Event "*** SCC Grand Prix: Titled Tuesday Blitz"]
[Site "Chess.com"]
[Date "2020.07.14"]
[Round "2"]
[White "tdf98pantani"]
[Black "Tekushka"]
[Result "1-0"]
[WhiteElo "2687"]
[BlackElo "2370"]
[TimeControl "180+1"]
[EndTime "10:18:00 PDT"]
[Termination "tdf98pantani won on time"]

1. d4 {[%clk 0:03:00.9]} 1... d5 {[%clk 0:02:59.6]} 2. c4 {[%clk 0:03:00.9]}
2... c6 {[%clk 0:02:59.9]} 3. e3 {[%clk 0:02:58.3]} 3... Bf5 {[%clk 0:02:55.8]}
4. Nc3 {[%clk 0:02:58.3]} 4... e6 {[%clk 0:02:56.1]} 5. Nf3 {[%clk 0:02:56.8]}
5... Nd7 {[%clk 0:02:56.1]} 6. Bd3 {[%clk 0:02:53.4]} 6... Bxd3 {[%clk
0:02:55.3]} 7. Qxd3 {[%clk 0:02:53.7]} 7... Ngf6 {[%clk 0:02:52.9]} 8. O-O
{[%clk 0:02:53.1]} 8... Bb4 {[%clk 0:02:50.6]} 9. Ne2 {[%clk 0:02:49.9]} 9...
O-O {[%clk 0:02:48]} 10. Ng3 {[%clk 0:02:49.6]} 10... Re8 {[%clk 0:02:39]} 11.
Rd1 {[%clk 0:02:49]} 11... Bd6 {[%clk 0:02:33.7]} 12. b3 {[%clk 0:02:46.4]}
12... Qe7 {[%clk 0:02:28.2]} 13. Bb2 {[%clk 0:02:40.4]} 13... a5 {[%clk
0:02:26.1]} 14. a3 {[%clk 0:02:32.6]} 14... Bxg3 {[%clk 0:02:21.9]} 15. hxg3
{[%clk 0:02:32]} 15... Ne4 {[%clk 0:02:22.3]} 16. Nd2 {[%clk 0:02:20.7]} 16...
Ndf6 {[%clk 0:02:15.2]} 17. Nxe4 {[%clk 0:02:17.4]} 17... Nxe4 {[%clk
0:02:14.9]} 18. Bc3 {[%clk 0:02:07.3]} 18... h5 {[%clk 0:02:07.2]} 19. Be1
{[%clk 0:02:07.2]} 19... Qg5 {[%clk 0:02:05]} 20. Qe2 {[%clk 0:02:05.4]} 20...
f5 {[%clk 0:01:58.4]} 21. Qf3 {[%clk 0:02:05.1]} 21... Re7 {[%clk 0:01:47]} 22.
a4 {[%clk 0:02:04.5]} 22... Kf7 {[%clk 0:01:46]} 23. Qf4 {[%clk 0:02:04.4]}
23... Qf6 {[%clk 0:01:45.4]} 24. f3 {[%clk 0:02:02.8]} 24... g5 {[%clk
0:01:41.5]} 25. Qe5 {[%clk 0:02:02.4]} 25... Qxe5 {[%clk 0:01:39]} 26. dxe5
{[%clk 0:02:03.3]} 26... Nc5 {[%clk 0:01:39.1]} 27. Rab1 {[%clk 0:02:03.3]}
27... g4 {[%clk 0:01:29.5]} 28. Rdc1 {[%clk 0:01:58.6]} 28... Nd3 {[%clk
0:01:26.3]} 29. Rc2 {[%clk 0:01:55.6]} 29... Nxe5 {[%clk 0:01:24.3]} 30. Bc3
{[%clk 0:01:55.4]} 30... Nd7 {[%clk 0:01:14.7]} 31. Kf2 {[%clk 0:01:55.5]} 31...
Ree8 {[%clk 0:01:13.7]} 32. Rh1 {[%clk 0:01:54.8]} 32... Kg6 {[%clk 0:01:12.1]}
33. Rh2 {[%clk 0:01:46.4]} 33... Nc5 {[%clk 0:01:01.5]} 34. Bb2 {[%clk
0:01:34.1]} 34... Nxb3 {[%clk 0:00:52.3]} 35. Ba3 {[%clk 0:01:33.7]} 35... dxc4
{[%clk 0:00:46.5]} 36. Rxc4 {[%clk 0:01:33.3]} 36... Rad8 {[%clk 0:00:44.7]} 37.
Rc3 {[%clk 0:01:27.4]} 37... Rd2+ {[%clk 0:00:27.3]} 38. Ke1 {[%clk 0:01:19.7]}
38... Red8 {[%clk 0:00:27.1]} 39. fxg4 {[%clk 0:01:16.7]} 39... hxg4 {[%clk
0:00:17]} 40. e4 {[%clk 0:01:06.3]} 40... Rd1+ {[%clk 0:00:16.5]} 41. Ke2 {[%clk
0:01:06.6]} 41... R8d2+ {[%clk 0:00:14.1]} 42. Ke3 {[%clk 0:01:06.8]} 42... Nc1
{[%clk 0:00:13]} 43. Bxc1 {[%clk 0:01:03.4]} 43... Rd4 {[%clk 0:00:07.7]} 44.
exf5+ {[%clk 0:01:02.7]} 44... exf5 {[%clk 0:00:07]} 45. Ke2 {[%clk 0:01:03.4]}
45... Rg1 {[%clk 0:00:06.1]} 46. Be3 {[%clk 0:01:01.3]} 46... Re4 {[%clk
0:00:06.1]} 47. Kf2 {[%clk 0:00:59.2]} 47... Ra1 {[%clk 0:00:05.7]} 48. Rh6+
{[%clk 0:00:57.5]} 48... Kg7 {[%clk 0:00:03.6]} 49. Rd6 {[%clk 0:00:57.6]} 49...
Ra2+ {[%clk 0:00:03.2]} 50. Rd2 {[%clk 0:00:56.8]} 50... Rxd2+ {[%clk
0:00:02.1]} 51. Bxd2 {[%clk 0:00:57.7]} 51... Rxa4 {[%clk 0:00:02.4]} 52. Rd3
{[%clk 0:00:56.2]} 52... Ra2 {[%clk 0:00:02.6]} 53. Ke3 {[%clk 0:00:56.1]} 53...
a4 {[%clk 0:00:01.2]} 54. Bc3+ {[%clk 0:00:55.8]} 1-0

[Event "*** SCC Grand Prix: Titled Tuesday Blitz"]
[Site "Chess.com"]
[Date "2020.07.14"]
[Round "2"]
[White "IAgrest"]
[Black "Nafania1"]
[Result "0-1"]
[WhiteElo "2216"]
[BlackElo "2437"]
[TimeControl "180+1"]
[EndTime "10:18:00 PDT"]
[Termination "Nafania1 won by resignation"]

1. e4 {[%clk 0:02:57.4]} 1... e6 {[%clk 0:02:59.9]} 2. d4 {[%clk 0:02:57.2]}
2... d5 {[%clk 0:03:00.2]} 3. Nc3 {[%clk 0:02:57.2]} 3... h6 {[%clk 0:03:00]} 4.
Nf3 {[%clk 0:02:56.5]} 4... Nf6 {[%clk 0:02:59.6]} 5. Bd3 {[%clk 0:02:55.3]}
5... Bb4 {[%clk 0:02:59.3]} 6. exd5 {[%clk 0:02:51.3]} 6... exd5 {[%clk
0:02:58.5]} 7. O-O {[%clk 0:02:50.5]} 7... O-O {[%clk 0:02:58.6]} 8. Ne5 {[%clk
0:02:48.7]} 8... c5 {[%clk 0:02:53.5]} 9. a3 {[%clk 0:02:27.4]} 9... cxd4 {[%clk
0:02:29.4]} 10. axb4 {[%clk 0:02:23.4]} 10... dxc3 {[%clk 0:02:29.7]} 11. bxc3
{[%clk 0:02:23.7]} 11... Qc7 {[%clk 0:02:24.3]} 12. f4 {[%clk 0:02:02]} 12...
Qxc3 {[%clk 0:02:05.4]} 13. Bd2 {[%clk 0:01:39.5]} 13... Qd4+ {[%clk 0:01:53.8]}
14. Kh1 {[%clk 0:01:39.2]} 14... Nc6 {[%clk 0:01:46.6]} 15. c3 {[%clk 0:01:38]}
15... Qb6 {[%clk 0:01:42.8]} 16. Qf3 {[%clk 0:01:36.6]} 16... Be6 {[%clk
0:01:16.9]} 17. Rae1 {[%clk 0:01:16.2]} 17... Rae8 {[%clk 0:01:08.9]} 18. Be3
{[%clk 0:01:01.1]} 18... Qc7 {[%clk 0:01:06.4]} 19. Bc5 {[%clk 0:01:00.8]} 19...
Nxe5 {[%clk 0:00:55.5]} 20. fxe5 {[%clk 0:01:00.5]} 20... Nd7 {[%clk 0:00:48.5]}
21. Bxf8 {[%clk 0:00:59.5]} 21... Rxf8 {[%clk 0:00:48.5]} 22. Qg3 {[%clk
0:00:51]} 22... Kh8 {[%clk 0:00:46.5]} 23. Bf5 {[%clk 0:00:49.4]} 23... Qc6
{[%clk 0:00:40.3]} 24. Re3 {[%clk 0:00:43.8]} 24... Re8 {[%clk 0:00:35]} 25. h3
{[%clk 0:00:42.6]} 25... a6 {[%clk 0:00:34.4]} 26. Bb1 {[%clk 0:00:25.3]} 26...
Kg8 {[%clk 0:00:34.5]} 27. Rfe1 {[%clk 0:00:15.9]} 27... b6 {[%clk 0:00:30.8]}
28. Qf4 {[%clk 0:00:15.8]} 28... a5 {[%clk 0:00:29.5]} 29. Rg3 {[%clk
0:00:14.9]} 29... Qc4 {[%clk 0:00:28]} 30. Qxh6 {[%clk 0:00:13.4]} 30... Kf8
{[%clk 0:00:16.8]} 31. Qxg7+ {[%clk 0:00:11.8]} 31... Ke7 {[%clk 0:00:17.2]} 32.
Qg5+ {[%clk 0:00:11.7]} 32... Kf8 {[%clk 0:00:17.5]} 33. Qg7+ {[%clk 0:00:09.1]}
33... Ke7 {[%clk 0:00:17.7]} 34. Qg5+ {[%clk 0:00:08.9]} 34... Kf8 {[%clk
0:00:18]} 35. Bh7 {[%clk 0:00:07.7]} 35... axb4 {[%clk 0:00:13.6]} 36. cxb4
{[%clk 0:00:07.5]} 36... Qxb4 {[%clk 0:00:13.4]} 37. Rf3 {[%clk 0:00:07.7]}
37... Qxe1+ {[%clk 0:00:12.7]} 38. Kh2 {[%clk 0:00:08]} 38... Qxe5+ {[%clk
0:00:12.8]} 0-1